[Event "Late-Titled-Tuesday-Blitz-March-12-2024"]
[Site "Chess.com"]
[Date "2024.03.12"]
[Round "4"]
[White "Likvidator228"]
[Black "JSPrepz"]
[Result "0-1"]
[WhiteElo "2602"]
[BlackElo "2827"]
[TimeControl "180+1"]
[EndTime "14:37:59 PDT"]
[Termination "JSPrepz won on time"]

1. d4 {[%clk 0:02:59.2]} 1... Nf6 {[%clk 0:03:00.1]} 2. Nf3 {[%clk 0:02:51.4]}
2... c5 {[%clk 0:03:00.3]} 3. c3 {[%clk 0:02:50.4]} 3... g6 {[%clk 0:03:00.1]}
4. Bf4 {[%clk 0:02:50.7]} 4... Bg7 {[%clk 0:03:00.5]} 5. e3 {[%clk 0:02:50.8]}
5... O-O {[%clk 0:03:00.4]} 6. Nbd2 {[%clk 0:02:51.3]} 6... cxd4 {[%clk
0:03:00.9]} 7. cxd4 {[%clk 0:02:50.6]} 7... d6 {[%clk 0:03:01.8]} 8. h3 {[%clk
0:02:50.8]} 8... Nc6 {[%clk 0:03:02]} 9. Be2 {[%clk 0:02:50.4]} 9... Nd5 {[%clk
0:03:01.6]} 10. Bg3 {[%clk 0:02:45.1]} 10... e5 {[%clk 0:03:01.5]} 11. dxe5
{[%clk 0:02:28.2]} 11... dxe5 {[%clk 0:03:02.4]} 12. O-O {[%clk 0:02:28.4]}
12... Re8 {[%clk 0:03:02.7]} 13. Nc4 {[%clk 0:02:09.6]} 13... e4 {[%clk
0:02:32.2]} 14. Nfd2 {[%clk 0:02:04.9]} 14... Ndb4 {[%clk 0:02:26.2]} 15. Nd6
{[%clk 0:02:01.1]} 15... Re6 {[%clk 0:02:17.7]} 16. N6xe4 {[%clk 0:02:01.3]}
16... Bxb2 {[%clk 0:02:05.6]} 17. Rb1 {[%clk 0:02:01.3]} 17... Bg7 {[%clk
0:02:05.5]} 18. Bc4 {[%clk 0:02:01.5]} 18... Nd5 {[%clk 0:01:31]} 19. Nc5 {[%clk
0:01:27.4]} 19... Re7 {[%clk 0:01:31.3]} 20. Nf3 {[%clk 0:00:55]} 20... Nc3
{[%clk 0:01:10.6]} 21. Qxd8+ {[%clk 0:00:54.6]} 21... Nxd8 {[%clk 0:01:11.5]}
22. Rbc1 {[%clk 0:00:44.5]} 22... Nc6 {[%clk 0:01:03.4]} 23. Bd6 {[%clk
0:00:40]} 23... Re8 {[%clk 0:01:03.5]} 24. Ng5 {[%clk 0:00:29.2]} 24... Nd8
{[%clk 0:00:52.7]} 25. Kh1 {[%clk 0:00:21]} 25... h6 {[%clk 0:00:49.4]} 26. Nf3
{[%clk 0:00:20.1]} 26... Nc6 {[%clk 0:00:49.9]} 27. Nd3 {[%clk 0:00:07.7]} 27...
Ne4 {[%clk 0:00:47.9]} 28. Nf4 {[%clk 0:00:07.6]} 28... Nxd6 {[%clk 0:00:47.8]}
29. Bd5 {[%clk 0:00:07.4]} 29... Ne7 {[%clk 0:00:47.2]} 30. Bb3 {[%clk 0:00:07]}
30... Bf5 {[%clk 0:00:45.1]} 31. Rfd1 {[%clk 0:00:06.6]} 31... Ne4 {[%clk
0:00:45.8]} 32. Kg1 {[%clk 0:00:06.3]} 32... Rac8 {[%clk 0:00:45.4]} 33. Nd4
{[%clk 0:00:05.9]} 33... Rxc1 {[%clk 0:00:44.8]} 34. Rxc1 {[%clk 0:00:06]} 34...
Bxd4 {[%clk 0:00:45.1]} 35. exd4 {[%clk 0:00:06.5]} 35... Rc8 {[%clk 0:00:44.7]}
36. Rd1 {[%clk 0:00:07.1]} 36... Nd6 {[%clk 0:00:43.8]} 37. d5 {[%clk
0:00:07.3]} 37... Bd7 {[%clk 0:00:42.5]} 38. g4 {[%clk 0:00:07.6]} 38... Kg7
{[%clk 0:00:42.6]} 39. Nd3 {[%clk 0:00:08]} 39... Bb5 {[%clk 0:00:40.6]} 40. Ne5
{[%clk 0:00:08.4]} 40... Ng8 {[%clk 0:00:40]} 41. Rd2 {[%clk 0:00:08]} 41... Nf6
{[%clk 0:00:39.9]} 42. f4 {[%clk 0:00:07.9]} 42... Nfe4 {[%clk 0:00:40.2]} 43.
Rb2 {[%clk 0:00:06.2]} 43... Rc3 {[%clk 0:00:40.3]} 44. Kg2 {[%clk 0:00:06.2]}
44... Rg3+ {[%clk 0:00:40.1]} 45. Kh2 {[%clk 0:00:06.3]} 45... Bf1 {[%clk
0:00:39.6]} 46. Bd1 {[%clk 0:00:05.7]} 46... Rxh3+ {[%clk 0:00:38.7]} 47. Kg1
{[%clk 0:00:05.8]} 47... Ba6 {[%clk 0:00:39.3]} 48. Rh2 {[%clk 0:00:03.9]} 48...
Rxh2 {[%clk 0:00:36.7]} 49. Kxh2 {[%clk 0:00:03.4]} 49... Nc3 {[%clk 0:00:37.4]}
50. Bb3 {[%clk 0:00:02.7]} 50... Bb5 {[%clk 0:00:36.3]} 51. Nf3 {[%clk
0:00:02.1]} 51... a5 {[%clk 0:00:35.6]} 52. Nd4 {[%clk 0:00:02.4]} 52... Bd7
{[%clk 0:00:36.2]} 53. Kg3 {[%clk 0:00:02.2]} 53... a4 {[%clk 0:00:36.8]} 54.
Bc2 {[%clk 0:00:01.2]} 54... Nxd5 {[%clk 0:00:37.4]} 0-1

[Event "Late-Titled-Tuesday-Blitz-March-12-2024"]
[Site "Chess.com"]
[Date "2024.03.12"]
[Round "4"]
[White "SergioMoralesG"]
[Black "KyronGriffith"]
[Result "0-1"]
[WhiteElo "2485"]
[BlackElo "2686"]
[TimeControl "180+1"]
[EndTime "14:38:03 PDT"]
[Termination "KyronGriffith won on time"]

1. d4 {[%clk 0:03:00.9]} 1... Nf6 {[%clk 0:02:59.3]} 2. c4 {[%clk 0:03:00.7]}
2... g6 {[%clk 0:02:59.9]} 3. Nc3 {[%clk 0:03:00.2]} 3... Bg7 {[%clk 0:03:00.6]}
4. e4 {[%clk 0:03:00.7]} 4... d6 {[%clk 0:03:01.3]} 5. Nf3 {[%clk 0:03:00.8]}
5... O-O {[%clk 0:03:02]} 6. Be2 {[%clk 0:03:01.4]} 6... e5 {[%clk 0:03:02.4]}
7. Be3 {[%clk 0:03:02]} 7... Ng4 {[%clk 0:03:01.7]} 8. Bg5 {[%clk 0:03:02.5]}
8... f6 {[%clk 0:03:02.2]} 9. Bh4 {[%clk 0:03:03.2]} 9... Nc6 {[%clk 0:02:59.7]}
10. d5 {[%clk 0:03:03.5]} 10... Ne7 {[%clk 0:02:54.9]} 11. Nd2 {[%clk
0:03:03.6]} 11... Nh6 {[%clk 0:02:55.1]} 12. f3 {[%clk 0:03:04.2]} 12... g5
{[%clk 0:02:52.2]} 13. Bf2 {[%clk 0:03:03.9]} 13... f5 {[%clk 0:02:51.7]} 14. c5
{[%clk 0:03:02.7]} 14... Bd7 {[%clk 0:02:42.1]} 15. cxd6 {[%clk 0:02:54.4]}
15... cxd6 {[%clk 0:02:43]} 16. Nc4 {[%clk 0:02:54.7]} 16... Nf7 {[%clk
0:02:40.9]} 17. a4 {[%clk 0:02:43.3]} 17... Ng6 {[%clk 0:02:27.2]} 18. O-O
{[%clk 0:02:28.9]} 18... Nf4 {[%clk 0:02:19.4]} 19. Qb3 {[%clk 0:02:24.3]} 19...
b6 {[%clk 0:02:10.7]} 20. Rae1 {[%clk 0:02:11.4]} 20... Rc8 {[%clk 0:02:03.7]}
21. Nb5 {[%clk 0:02:02.9]} 21... Bxb5 {[%clk 0:01:38.8]} 22. axb5 {[%clk
0:01:56.5]} 22... g4 {[%clk 0:01:35.5]} 23. exf5 {[%clk 0:01:38.6]} 23... Nxe2+
{[%clk 0:01:33.9]} 24. Rxe2 {[%clk 0:01:38.3]} 24... gxf3 {[%clk 0:01:34.4]} 25.
gxf3 {[%clk 0:01:24.6]} 25... Nh6 {[%clk 0:01:31.5]} 26. Ne3 {[%clk 0:01:01.1]}
26... Nxf5 {[%clk 0:01:24]} 27. Nxf5 {[%clk 0:01:00.9]} 27... Rxf5 {[%clk
0:01:24.5]} 28. Be3 {[%clk 0:00:39.4]} 28... Kh8 {[%clk 0:01:16.9]} 29. Rg2
{[%clk 0:00:38.8]} 29... Qh4 {[%clk 0:01:02.7]} 30. Kh1 {[%clk 0:00:33.4]} 30...
Qh5 {[%clk 0:00:45]} 31. Qa3 {[%clk 0:00:21.3]} 31... Rxf3 {[%clk 0:00:41.2]}
32. Rfg1 {[%clk 0:00:17.4]} 32... Rf7 {[%clk 0:00:38.1]} 33. Qa4 {[%clk
0:00:03.3]} 33... Qf3 {[%clk 0:00:36.2]} 34. Qg4 {[%clk 0:00:02]} 34... Qxg4
{[%clk 0:00:15.5]} 35. Rxg4 {[%clk 0:00:02.9]} 35... Rcf8 {[%clk 0:00:15.6]} 36.
h4 {[%clk 0:00:02.8]} 36... Bf6 {[%clk 0:00:12.2]} 37. h5 {[%clk 0:00:02.8]}
37... h6 {[%clk 0:00:09.6]} 38. Bxh6 {[%clk 0:00:02.1]} 38... Rc8 {[%clk
0:00:10.3]} 39. Be3 {[%clk 0:00:02]} 39... Rh7 {[%clk 0:00:09.9]} 40. h6 {[%clk
0:00:01.6]} 40... Rf7 {[%clk 0:00:09]} 41. Kg2 {[%clk 0:00:01.8]} 41... Kh7
{[%clk 0:00:09.5]} 42. Rh1 {[%clk 0:00:02.1]} 42... Rc2+ {[%clk 0:00:07.9]} 43.
Kg3 {[%clk 0:00:01.5]} 43... Rxb2 {[%clk 0:00:08.3]} 44. Rh5 {[%clk 0:00:01.1]}
44... Rb3 {[%clk 0:00:08.3]} 0-1

[Event "Late-Titled-Tuesday-Blitz-March-12-2024"]
[Site "Chess.com"]
[Date "2024.03.12"]
[Round "4"]
[White "Alexei_Gubajdullin"]
[Black "Sanan_Sjugirov"]
[Result "0-1"]
[WhiteElo "2641"]
[BlackElo "2993"]
[TimeControl "180+1"]
[EndTime "14:38:05 PDT"]
[Termination "Sanan_Sjugirov won on time"]

1. d4 {[%clk 0:03:00.8]} 1... Nf6 {[%clk 0:03:00.1]} 2. Nf3 {[%clk 0:02:52.2]}
2... b6 {[%clk 0:02:59.6]} 3. Bf4 {[%clk 0:02:52.1]} 3... Bb7 {[%clk 0:02:59.2]}
4. e3 {[%clk 0:02:52.3]} 4... g6 {[%clk 0:02:59.8]} 5. Be2 {[%clk 0:02:52.6]}
5... Bg7 {[%clk 0:03:00.1]} 6. O-O {[%clk 0:02:53.1]} 6... O-O {[%clk
0:03:00.7]} 7. h3 {[%clk 0:02:53.6]} 7... d6 {[%clk 0:03:01.3]} 8. a4 {[%clk
0:02:53.8]} 8... a5 {[%clk 0:03:00]} 9. Nc3 {[%clk 0:02:53.3]} 9... Nbd7 {[%clk
0:02:58.5]} 10. Bh2 {[%clk 0:02:53.3]} 10... e6 {[%clk 0:02:57.7]} 11. Nd2
{[%clk 0:02:53.3]} 11... e5 {[%clk 0:02:55]} 12. Bf3 {[%clk 0:02:52.1]} 12...
Bxf3 {[%clk 0:02:52.3]} 13. Qxf3 {[%clk 0:02:50.5]} 13... Re8 {[%clk 0:02:48.8]}
14. Qc6 {[%clk 0:02:47.8]} 14... Rc8 {[%clk 0:02:44.5]} 15. Nb5 {[%clk
0:02:46.3]} 15... d5 {[%clk 0:02:29.6]} 16. c4 {[%clk 0:02:23.5]} 16... Re6
{[%clk 0:02:18.3]} 17. Qb7 {[%clk 0:02:22.5]} 17... c6 {[%clk 0:02:18.3]} 18.
dxe5 {[%clk 0:02:08.8]} 18... cxb5 {[%clk 0:02:05.6]} 19. exf6 {[%clk
0:02:05.8]} 19... Nxf6 {[%clk 0:02:06.5]} 20. c5 {[%clk 0:00:55.1]} 20... Rxc5
{[%clk 0:01:34.5]} 21. Nb3 {[%clk 0:00:45.9]} 21... Re7 {[%clk 0:01:24]} 22.
Nxc5 {[%clk 0:00:45]} 22... Rxb7 {[%clk 0:01:22.8]} 23. Nxb7 {[%clk 0:00:44.8]}
23... Qd7 {[%clk 0:01:16.1]} 24. Nd6 {[%clk 0:00:29.5]} 24... bxa4 {[%clk
0:01:15.9]} 25. Rac1 {[%clk 0:00:29]} 25... Bf8 {[%clk 0:01:15.8]} 26. Be5
{[%clk 0:00:21.6]} 26... Qe6 {[%clk 0:00:59.7]} 27. Bxf6 {[%clk 0:00:15.2]}
27... Qxf6 {[%clk 0:01:00.6]} 28. Ne8 {[%clk 0:00:14.4]} 28... Qxb2 {[%clk
0:00:52.8]} 29. Rc8 {[%clk 0:00:10.3]} 29... a3 {[%clk 0:00:48.9]} 30. g4 {[%clk
0:00:09.8]} 30... h6 {[%clk 0:00:42.1]} 31. h4 {[%clk 0:00:07.3]} 31... a2
{[%clk 0:00:40]} 32. g5 {[%clk 0:00:03.6]} 32... hxg5 {[%clk 0:00:38.9]} 33.
hxg5 {[%clk 0:00:02.6]} 33... a1=Q {[%clk 0:00:35]} 34. Rxa1 {[%clk 0:00:02.8]}
34... Qxa1+ {[%clk 0:00:35.9]} 35. Kg2 {[%clk 0:00:03.5]} 35... Qe5 {[%clk
0:00:28.3]} 36. Nf6+ {[%clk 0:00:01.3]} 36... Kg7 {[%clk 0:00:28.5]} 37. Ne8+
{[%clk 0:00:01.3]} 37... Kh8 {[%clk 0:00:28.2]} 38. f4 {[%clk 0:00:01.8]} 38...
Qe4+ {[%clk 0:00:17.5]} 39. Kf2 {[%clk 0:00:01.8]} 39... d4 {[%clk 0:00:17.3]}
40. Nf6 {[%clk 0:00:01.7]} 40... Qxe3+ {[%clk 0:00:17.4]} 41. Kf1 {[%clk
0:00:01.7]} 41... Qxf4+ {[%clk 0:00:16.6]} 42. Ke1 {[%clk 0:00:01.9]} 42... Qe3+
{[%clk 0:00:15.6]} 43. Kd1 {[%clk 0:00:02]} 43... Qe7 {[%clk 0:00:14]} 0-1

[Event "Late-Titled-Tuesday-Blitz-March-12-2024"]
[Site "Chess.com"]
[Date "2024.03.12"]
[Round "4"]
[White "Moultino06"]
[Black "YoreDea"]
[Result "1-0"]
[WhiteElo "2825"]
[BlackElo "2600"]
[TimeControl "180+1"]
[EndTime "14:38:05 PDT"]
[Termination "Moultino06 won on time"]

1. Nc3 {[%clk 0:02:57.3]} 1... e6 {[%clk 0:02:56]} 2. d4 {[%clk 0:02:55.3]} 2...
d5 {[%clk 0:02:56]} 3. Bf4 {[%clk 0:02:54.6]} 3... Nf6 {[%clk 0:02:54.1]} 4. Nb5
{[%clk 0:02:54.6]} 4... Na6 {[%clk 0:02:52.7]} 5. e3 {[%clk 0:02:54.3]} 5... c6
{[%clk 0:02:52.3]} 6. Nc3 {[%clk 0:02:54.3]} 6... b5 {[%clk 0:02:51.8]} 7. Nf3
{[%clk 0:02:49.1]} 7... Bb4 {[%clk 0:02:47.6]} 8. Ne5 {[%clk 0:02:43.1]} 8...
Qb6 {[%clk 0:02:43.4]} 9. Bd3 {[%clk 0:02:36.9]} 9... Nd7 {[%clk 0:01:55.9]} 10.
O-O {[%clk 0:02:15.8]} 10... Nxe5 {[%clk 0:01:53.3]} 11. Bxe5 {[%clk 0:02:16.7]}
11... f6 {[%clk 0:01:52.6]} 12. Qh5+ {[%clk 0:02:06.4]} 12... Kf8 {[%clk
0:01:52.4]} 13. Bg3 {[%clk 0:01:51.4]} 13... Bd7 {[%clk 0:01:51.2]} 14. Ne2
{[%clk 0:01:48.4]} 14... Be8 {[%clk 0:01:49.8]} 15. Qf3 {[%clk 0:01:44.9]} 15...
Bf7 {[%clk 0:01:39.4]} 16. e4 {[%clk 0:01:39.4]} 16... Nc7 {[%clk 0:01:36.9]}
17. a4 {[%clk 0:01:33.6]} 17... bxa4 {[%clk 0:01:28.9]} 18. Rxa4 {[%clk
0:01:31.6]} 18... Be7 {[%clk 0:01:29]} 19. Rfa1 {[%clk 0:01:24.6]} 19... g6
{[%clk 0:01:25.9]} 20. Qf4 {[%clk 0:00:57.1]} 20... Ne8 {[%clk 0:01:24.2]} 21.
Qh6+ {[%clk 0:00:50.6]} 21... Kg8 {[%clk 0:01:24.4]} 22. h4 {[%clk 0:00:45.6]}
22... Bf8 {[%clk 0:01:18.7]} 23. Qf4 {[%clk 0:00:43.3]} 23... h5 {[%clk
0:01:18.3]} 24. b3 {[%clk 0:00:39.7]} 24... Bh6 {[%clk 0:01:04.1]} 25. Qf3
{[%clk 0:00:39.6]} 25... Kg7 {[%clk 0:00:55.7]} 26. e5 {[%clk 0:00:39.5]} 26...
f5 {[%clk 0:00:49.4]} 27. Bf4 {[%clk 0:00:39.4]} 27... Nc7 {[%clk 0:00:42.8]}
28. Bxh6+ {[%clk 0:00:35.8]} 28... Rxh6 {[%clk 0:00:40.1]} 29. Qe3 {[%clk
0:00:32.3]} 29... Rhh8 {[%clk 0:00:33.7]} 30. Qg5 {[%clk 0:00:32.1]} 30... Rhf8
{[%clk 0:00:29.2]} 31. Nf4 {[%clk 0:00:29.9]} 31... Kh7 {[%clk 0:00:29]} 32. Qe7
{[%clk 0:00:27.4]} 32... Rae8 {[%clk 0:00:20.4]} 33. Qa3 {[%clk 0:00:23.9]}
33... Kh6 {[%clk 0:00:13.4]} 34. Qc1 {[%clk 0:00:23.2]} 34... Kh7 {[%clk
0:00:13]} 35. Nh3 {[%clk 0:00:18.1]} 35... Nb5 {[%clk 0:00:09.3]} 36. Bxb5
{[%clk 0:00:17.1]} 36... cxb5 {[%clk 0:00:09.4]} 37. Rxa7 {[%clk 0:00:16.6]}
37... Qxd4 {[%clk 0:00:08.8]} 38. Ng5+ {[%clk 0:00:16.1]} 38... Kg8 {[%clk
0:00:08.6]} 39. Nxf7 {[%clk 0:00:10.8]} 39... Rxf7 {[%clk 0:00:08.9]} 40. Qg5
{[%clk 0:00:11]} 40... Qxe5 {[%clk 0:00:04.7]} 41. Qxg6+ {[%clk 0:00:11]} 41...
Rg7 {[%clk 0:00:04.4]} 42. Qxe8+ {[%clk 0:00:10.8]} 42... Kh7 {[%clk 0:00:05]}
43. Qxh5+ {[%clk 0:00:10.9]} 43... Kg8 {[%clk 0:00:04.3]} 44. Ra8+ {[%clk
0:00:11.8]} 1-0

[Event "Late-Titled-Tuesday-Blitz-March-12-2024"]
[Site "Chess.com"]
[Date "2024.03.12"]
[Round "4"]
[White "Szparu"]
[Black "Lion-Al-Messi"]
[Result "1-0"]
[WhiteElo "2809"]
[BlackElo "2585"]
[TimeControl "180+1"]
[EndTime "14:38:06 PDT"]
[Termination "Szparu won on time"]

1. d4 {[%clk 0:02:55.7]} 1... Nf6 {[%clk 0:02:58.1]} 2. c4 {[%clk 0:02:53.3]}
2... b6 {[%clk 0:02:54.9]} 3. Nc3 {[%clk 0:02:47.7]} 3... Bb7 {[%clk 0:02:55]}
4. Qc2 {[%clk 0:02:48.3]} 4... d5 {[%clk 0:02:54.3]} 5. cxd5 {[%clk 0:02:47.9]}
5... Nxd5 {[%clk 0:02:55.2]} 6. e4 {[%clk 0:02:47.4]} 6... Nxc3 {[%clk
0:02:53.7]} 7. bxc3 {[%clk 0:02:47.5]} 7... e6 {[%clk 0:02:54.3]} 8. Nf3 {[%clk
0:02:41.4]} 8... Be7 {[%clk 0:02:52.8]} 9. Bd3 {[%clk 0:02:41]} 9... c5 {[%clk
0:02:52.8]} 10. O-O {[%clk 0:02:40.5]} 10... O-O {[%clk 0:02:52.6]} 11. Rd1
{[%clk 0:02:34.2]} 11... Nd7 {[%clk 0:02:52.1]} 12. Qe2 {[%clk 0:02:28.3]} 12...
Qc7 {[%clk 0:02:33.9]} 13. h3 {[%clk 0:02:26.3]} 13... Rad8 {[%clk 0:02:28.5]}
14. Bb2 {[%clk 0:02:24.7]} 14... h6 {[%clk 0:02:23.9]} 15. Nd2 {[%clk
0:02:20.9]} 15... Nf6 {[%clk 0:02:22.3]} 16. a4 {[%clk 0:02:08.2]} 16... cxd4
{[%clk 0:02:01.3]} 17. cxd4 {[%clk 0:02:08.2]} 17... Qf4 {[%clk 0:02:01.3]} 18.
g3 {[%clk 0:02:04]} 18... Qb8 {[%clk 0:02:01.1]} 19. a5 {[%clk 0:01:10.6]} 19...
bxa5 {[%clk 0:02:00.3]} 20. Rxa5 {[%clk 0:01:08.6]} 20... Bc6 {[%clk 0:01:50.4]}
21. Ba1 {[%clk 0:01:00.3]} 21... Bb4 {[%clk 0:01:48]} 22. Ra2 {[%clk 0:00:54.9]}
22... Qa8 {[%clk 0:01:35]} 23. f3 {[%clk 0:00:55]} 23... Rd7 {[%clk 0:01:29.9]}
24. Nc4 {[%clk 0:00:52.8]} 24... Rb7 {[%clk 0:01:22.6]} 25. Ne5 {[%clk
0:00:50.6]} 25... Be8 {[%clk 0:01:21.5]} 26. Kg2 {[%clk 0:00:48.8]} 26... a5
{[%clk 0:01:19.4]} 27. g4 {[%clk 0:00:48.5]} 27... Rb6 {[%clk 0:01:15.7]} 28. h4
{[%clk 0:00:47.3]} 28... Nd7 {[%clk 0:01:15.6]} 29. Nc4 {[%clk 0:00:47.1]} 29...
Rb8 {[%clk 0:01:13.3]} 30. g5 {[%clk 0:00:46.3]} 30... h5 {[%clk 0:01:07.7]} 31.
d5 {[%clk 0:00:46.4]} 31... Nc5 {[%clk 0:00:52.6]} 32. Bb1 {[%clk 0:00:42.2]}
32... Bb5 {[%clk 0:00:50.5]} 33. Qb2 {[%clk 0:00:41.8]} 33... f6 {[%clk
0:00:48.2]} 34. Nd6 {[%clk 0:00:36.7]} 34... Na4 {[%clk 0:00:36.1]} 35. Qc2
{[%clk 0:00:30.5]} 35... Bxd6 {[%clk 0:00:35.5]} 36. e5 {[%clk 0:00:30.7]} 36...
f5 {[%clk 0:00:20.4]} 37. exd6 {[%clk 0:00:31.2]} 37... Nb6 {[%clk 0:00:16.6]}
38. Qb2 {[%clk 0:00:28.9]} 38... Rb7 {[%clk 0:00:07.2]} 39. dxe6 {[%clk
0:00:20.2]} 39... Nc4 {[%clk 0:00:07.4]} 40. Qd4 {[%clk 0:00:15.5]} 40... f4
{[%clk 0:00:06.5]} 41. e7 {[%clk 0:00:15.1]} 41... Ne3+ {[%clk 0:00:06.2]} 42.
Kh2 {[%clk 0:00:13.6]} 42... Rf7 {[%clk 0:00:04.5]} 43. Qe4 {[%clk 0:00:13.7]}
43... Bd3 {[%clk 0:00:03.2]} 44. Bxd3 {[%clk 0:00:13.4]} 44... Rb2+ {[%clk
0:00:02.4]} 45. Bxb2 {[%clk 0:00:13.5]} 45... Qxe4 {[%clk 0:00:02.7]} 46. Bxe4
{[%clk 0:00:13.7]} 46... Nxd1 {[%clk 0:00:03.1]} 47. e8=Q+ {[%clk 0:00:14.2]}
1-0

[Event "Late-Titled-Tuesday-Blitz-March-12-2024"]
[Site "Chess.com"]
[Date "2024.03.12"]
[Round "4"]
[White "Jospem"]
[Black "ChessLover0108"]
[Result "1-0"]
[WhiteElo "3125"]
[BlackElo "2943"]
[TimeControl "180+1"]
[EndTime "14:38:08 PDT"]
[Termination "Jospem won by checkmate"]

1. e4 {[%clk 0:03:00.9]} 1... c5 {[%clk 0:02:59.9]} 2. Nf3 {[%clk 0:03:00.7]}
2... d6 {[%clk 0:03:00.3]} 3. c3 {[%clk 0:03:01.3]} 3... Nf6 {[%clk 0:02:59]} 4.
h3 {[%clk 0:03:01.8]} 4... g6 {[%clk 0:02:57.5]} 5. Bd3 {[%clk 0:03:01.5]} 5...
Bg7 {[%clk 0:02:58]} 6. Bc2 {[%clk 0:02:59.8]} 6... O-O {[%clk 0:02:58.6]} 7.
O-O {[%clk 0:02:58.4]} 7... e5 {[%clk 0:02:56.9]} 8. d3 {[%clk 0:02:58]} 8...
Nc6 {[%clk 0:02:56.4]} 9. Bg5 {[%clk 0:02:58.3]} 9... d5 {[%clk 0:02:47.8]} 10.
Nbd2 {[%clk 0:02:48.1]} 10... h6 {[%clk 0:02:39.6]} 11. Bh4 {[%clk 0:02:48.2]}
11... g5 {[%clk 0:02:24.1]} 12. Bg3 {[%clk 0:02:47.6]} 12... dxe4 {[%clk
0:02:11.4]} 13. dxe4 {[%clk 0:02:41.9]} 13... Nh5 {[%clk 0:02:11.9]} 14. Nc4
{[%clk 0:02:40.5]} 14... Nf4 {[%clk 0:02:02.3]} 15. Ne3 {[%clk 0:02:40.3]} 15...
Be6 {[%clk 0:02:01]} 16. Nh2 {[%clk 0:02:06.3]} 16... Qb6 {[%clk 0:01:52.7]} 17.
Bb3 {[%clk 0:01:54.5]} 17... Rad8 {[%clk 0:01:52.6]} 18. Qc2 {[%clk 0:01:53.4]}
18... Na5 {[%clk 0:01:51.3]} 19. Bxe6 {[%clk 0:01:49.1]} 19... fxe6 {[%clk
0:01:52.2]} 20. Rad1 {[%clk 0:01:46.7]} 20... Qa6 {[%clk 0:01:48.9]} 21. Kh1
{[%clk 0:01:35.9]} 21... Nc4 {[%clk 0:01:37.8]} 22. Bxf4 {[%clk 0:01:29.3]}
22... exf4 {[%clk 0:01:33.4]} 23. Nxc4 {[%clk 0:01:28.7]} 23... Qxc4 {[%clk
0:01:34.3]} 24. a3 {[%clk 0:01:04.8]} 24... b5 {[%clk 0:01:09.5]} 25. e5 {[%clk
0:00:53.4]} 25... b4 {[%clk 0:01:02.4]} 26. Ng4 {[%clk 0:00:49.1]} 26... bxc3
{[%clk 0:00:50.7]} 27. Nf6+ {[%clk 0:00:31.1]} 27... Kf7 {[%clk 0:00:35.6]} 28.
bxc3 {[%clk 0:00:31.4]} 28... Bxf6 {[%clk 0:00:20.9]} 29. exf6 {[%clk
0:00:32.3]} 29... Kxf6 {[%clk 0:00:21.8]} 30. Qh7 {[%clk 0:00:32.7]} 30... Rh8
{[%clk 0:00:22]} 31. Qxa7 {[%clk 0:00:33.1]} 31... Qxc3 {[%clk 0:00:17.6]} 32.
Rc1 {[%clk 0:00:31.8]} 32... Qd4 {[%clk 0:00:18.2]} 33. Rxc5 {[%clk 0:00:29.3]}
33... Rd5 {[%clk 0:00:18.5]} 34. Rfc1 {[%clk 0:00:20.4]} 34... Rc8 {[%clk
0:00:18]} 35. Qh7 {[%clk 0:00:14.5]} 35... Rcxc5 {[%clk 0:00:18.1]} 36. Re1
{[%clk 0:00:09.8]} 36... Re5 {[%clk 0:00:11.4]} 37. Rb1 {[%clk 0:00:10]} 37...
Rb5 {[%clk 0:00:04.7]} 38. Rc1 {[%clk 0:00:08.9]} 38... Qxf2 {[%clk 0:00:03.5]}
39. Qxh6+ {[%clk 0:00:08.2]} 39... Ke7 {[%clk 0:00:03]} 40. Qg7+ {[%clk
0:00:07.2]} 40... Kd6 {[%clk 0:00:02.9]} 41. Qc7+ {[%clk 0:00:07.5]} 41... Kd5
{[%clk 0:00:03.4]} 42. Qc6+ {[%clk 0:00:03.8]} 42... Kd4 {[%clk 0:00:03.3]} 43.
Qc4+ {[%clk 0:00:04.7]} 43... Ke3 {[%clk 0:00:03.1]} 44. Rc3+ {[%clk 0:00:05.4]}
44... Kd2 {[%clk 0:00:03.5]} 45. Qd3+ {[%clk 0:00:06.1]} 45... Ke1 {[%clk
0:00:03.6]} 46. Rc1# {[%clk 0:00:07]} 1-0